Cogmind - Beta 12 @@@ ROGUE MODE // 2023.03.21 @ 14:01:36 Player: Rohain Result: Destroyed by S-10 Pest with Light Assault Rifle Performance ------------- Evolutions (0) 0 Regions Visited (4) 800 Robots Destroyed (31) 155 Value Destroyed (595) 595 Prototype IDs (0) 0 Alien Tech Used (0) 0 Bonus (0) 0 TOTAL SCORE: 1550 Bonus ------- None Cogmind --------- Core Integrity 0/250 Matter 176/300 Energy 84/100 System Corruption 0% Temperature Warm (148) Movement Walking (120) Location -9/Mines Parts ------- > --- POWER (1) -------- (None) > --- PROPULSION (2) --- Aluminum Leg Aluminum Leg > --- UTILITY (2) ------ Medium Storage Unit > --- WEAPON (2) ------- Particle Gun Particle Gun > --- INVENTORY (10) --- Combat Airjet Particle Gun Spread Laser Peak State ------------ > --- POWER ------------ Light Ion Engine > --- PROPULSION ------- Aluminum Leg Combat Airjet > --- UTILITY ---------- Improved Heat Sink Medium Storage Unit > --- WEAPON ----------- Particle Gun Particle Gun > --- INVENTORY -------- Light Nuclear Core Aluminum Leg Aluminum Leg Aluminum Leg Particle Gun Particle Gun Spread Laser Grenade Launcher Rocket Launcher [Rating: 16] Favorites ----------- Power Ion Engine Engine Ion Engine Power Core Light Nuclear Core Propulsion Aluminum Leg Leg Aluminum Leg Hover Unit Combat Airjet Utility Medium Storage Unit Device Improved Heat Sink Storage Medium Storage Unit Weapon Particle Gun Energy Gun Particle Gun Ballistic Gun Light Assault Rifle Launcher Grenade Launcher Build | -11 -10 -10 -10 -9 ------- Run | Jun Mat Min Exi Min Slots Evolved . | . . . . . Power . | . . . . . Propulsion . | . . . . . Utility . | . . . . . Weapon . | . . . . . Parts Attached 39 | 7 18 5 . 9 Power 6 | 1 3 1 . 1 Engine 4 | 1 2 1 . . Core 2 | . 1 . . 1 Reactor . | . . . . . Propulsion 15 | 2 5 4 . 4 Treads . | . . . . . Leg 14 | 2 5 3 . 4 Wheel . | . . . . . Hover 1 | . . 1 . . Flight . | . . . . . Utility 5 | 1 4 . . . Device 3 | . 3 . . . Storage 2 | 1 1 . . . Processor . | . . . . . Hackware . | . . . . . Protection . | . . . . . Artifact . | . . . . . Weapon 13 | 3 6 . . 4 Energy Gun 9 | 2 5 . . 2 Energy Cannon . | . . . . . Ballistic Gun 2 | 1 1 . . . Ballistic Cannon . | . . . . . Launcher 2 | . . . . 2 Special Weapon . | . . . . . Impact Weapon . | . . . . . Slashing Weapon . | . . . . . Piercing Weapon . | . . . . . Special Melee Weapon . | . . . . . Unidentified Prototypes . | . . . . . Parts Lost 8 | . 2 . . 6 Power 2 | . . . . 2 Propulsion 1 | . . . . 1 Utility 2 | . 1 . . 1 Weapon 3 | . 1 . . 2 Highest Loss Streak 4 | . 2 . . 4 To Critical Strikes . | . . . . . Average Slot Usage (%) 96 | . 96 100 100 95 Engine 9 | . 9 12 14 6 Core 4 | . 4 1 . 7 Leg 27 | . 27 27 28 26 Device 12 | . 10 14 14 13 Storage 14 | . 14 14 14 14 Energy Gun 26 | . 26 28 28 24 Naked Turns . | . . . . . Heaviest Build 22 | 14 22 22 20 22 Greatest Support 23 | 20 20 20 20 23 Greatest Overweight (x) 3 | . 3 1 . 1 Average Overweight (x) . | . . . . . Largest Inventory Capacity 10 | 8 10 10 10 10 Average Capacity 9 | 7 9 10 10 10 Most Carried 10 | 2 10 10 10 10 Average Carried 7 | 1 7 9 10 6 Final Capacity 10 | 8 10 10 10 10 Final Carried 10 | 2 10 10 10 3 Class Distribution -------------------- 63% | Mutant 36% | Scavenger-Mutant Dominant Class ---------------- Scavenger-Mutant | -10/Materials Mutant | -10/Mines Mutant | -10/Exiles Mutant | -9/Mines Resources | -11 -10 -10 -10 -9 ----------- Run | Jun Mat Min Exi Min Matter Collected 526 | 253 194 20 . 59 Remotely . | . . . . . Salvage Created 921 | 74 698 43 . 106 Parts 60 | . 30 6 . 24 Haulers Intercepted 2 | . 2 . . . Recyclers Shooed 1 | . 1 . . . Parts Field Recycled . | . . . . . Retrieved Matter . | . . . . . Parts Self-Destructed . | . . . . . Prevented . | . . . . . Kills | -11 -10 -10 -10 -9 ------- Run | Jun Mat Min Exi Min Combat Hostiles Destroyed 24 | . 9 3 . 12 Guns 15 | . 8 3 . 4 AOE 8 | . . . . 8 Classes Destroyed 6 | 1 4 1 . . Worker 1 | . 1 . . . Hauler 2 | . 2 . . . Recycler 3 | 1 2 . . . Watcher 1 | . 1 . . . Swarmer 13 | . . 3 . 10 Grunt 11 | . 9 . . 2 Best Kill Streak 9 | 1 5 3 . 9 Combat Bots Only 9 | . 3 3 . 9 Max Kills in Single Turn 4 | 1 1 1 . 4 Gunslinging . | . . . . . Exploded 3 | . . . . 3 Melee . | . . . . . Uniques/NPCs Destroyed . | . . . . . Combat | -11 -10 -10 -10 -9 -------- Run | Jun Mat Min Exi Min Damage Taken 1434 | . 634 265 . 535 Core 254 | . 134 32 . 88 Absorbed by Shields . | . . . . . Core Remaining (%) 100 | 100 . . . . Volleys Fired 69 | 2 47 5 . 15 Largest 2 | 2 2 2 . 2 Hottest 130 | 100 130 130 . 130 Shots Fired 130 | 4 92 10 . 24 Gun 121 | 4 92 10 . 15 Cannon . | . . . . . Launcher 9 | . . . . 9 Special . | . . . . . Kinetic 7 | . 7 . . . Thermal 114 | 4 85 10 . 15 Explosive 9 | . . . . 9 Electromagnetic . | . . . . . Robot Hit Streak 12 | 4 12 2 . 3 Robot Miss Streak 4 | . 3 4 . 4 Penetration Max . | . . . . . Secondary Targets 1 | . 1 . . . Max Gunslinging Chain 1 | . 1 . . . Shots Hit Robots 71 | 4 56 3 . 8 Core Hits 46 | 2 27 3 . 14 Critical Kills . | . . . . . Critical Parts Destroyed . | . . . . . Critical Strikes 7 | . 7 . . . Burn 7 | . 7 . . . Melee Attacks . | . . . . . Impact . | . . . . . Slashing . | . . . . . Piercing . | . . . . . Sneak Attacks . | . . . . . Combat Hostiles . | . . . . . Follow-up Attacks . | . . . . . Damage Inflicted 1497 | 51 786 79 . 581 Guns 1063 | 51 786 79 . 147 Cannons . | . . . . . Explosions 434 | . . . . 434 Melee . | . . . . . Ramming . | . . . . . Kinetic 24 | . 24 . . . Thermal 1039 | 51 762 79 . 147 Explosive 434 | . . . . 434 Electromagnetic . | . . . . . Impact . | . . . . . Slashing . | . . . . . Piercing . | . . . . . Highest Corruption . | . . . . . Average Corruption . | . . . . . Corruption Purged . | . . . . . Corruption Blocked . | . . . . . Overload Shots . | . . . . . Overflow Damage 10 | . . . . 10 Projectiles . | . . . . . Explosions 10 | . . . . 10 Melee . | . . . . . Knockbacks . | . . . . . Impact . | . . . . . Kinetic . | . . . . . Secondary . | . . . . . Self-Inflicted Damage 49 | . . . . 49 Shots 1 | . . . . 1 Rammed . | . . . . . Targets Rammed . | . . . . . Kicked . | . . . . . Crushed . | . . . . . Highest Temperature 314 | 78 314 99 . 148 Average Temperature 78 | 39 89 43 . 49 Received Heat Transfer 501 | . 408 . . 93 Siege Activations . | . . . . . Robots Corrupted . | . . . . . Combat Hostiles . | . . . . . Parts Fried . | . . . . . Impact Corruptions . | . . . . . Robots Melted 1 | . 1 . . . Combat Hostiles 1 | . 1 . . . Parts Melted 7 | . 7 . . . Heat Transferred 3173 | 148 2507 185 . 333 Parts Sabotaged . | . . . . . Parts Stolen . | . . . . . Parts Stripped . | . . . . . Power Chain Reactions . | . . . . . Missiles Intercepted . | . . . . . Alert | -11 -10 -10 -10 -9 ------- Run | Jun Mat Min Exi Min Peak Influence 241 | 5 188 122 . 241 Initial 52 | . 3 52 . . Average 95 | . 95 119 . 113 Maximum Alert Level 1 | . . . . 1 Low Security (%) 90 | 100 100 100 . 52 Level 1 9 | . . . . 47 Level 2 . | . . . . . Level 3 . | . . . . . Level 4 . | . . . . . Level 5 . | . . . . . High Security . | . . . . . Max Security . | . . . . . Squads Dispatched 2 | . 2 . . . Investigation . | . . . . . Extermination . | . . . . . Reinforcement 2 | . 2 . . . Assault . | . . . . . Garrison . | . . . . . Intercept . | . . . . . Searches Triggered . | . . . . . Construction Impeded . | . . . . . Haulers Reinforced . | . . . . . Active Scanning Responses . | . . . . . Cargo Convoy Interrupts . | . . . . . Stealth | -11 -10 -10 -10 -9 --------- Run | Jun Mat Min Exi Min Distress Signals 1 | . 1 . . . Communications Jammed . | . . . . . Distress Signals . | . . . . . Times Spotted 41 | . 21 7 . 13 Peak Tracking Total 9 | . 4 3 . 9 Tactical Retreats 1 | . 1 . . . Traps | -11 -10 -10 -10 -9 ------- Run | Jun Mat Min Exi Min Traps Triggered 2 | . 2 . . . Indirectly . | . . . . . Trap Hack Attempts . | . . . . . Triggered . | . . . . . Disarmed . | . . . . . Reprogrammed . | . . . . . Reused . | . . . . . Traps Extracted . | . . . . . Installed . | . . . . . Triggered . | . . . . . Machines | -11 -10 -10 -10 -9 ---------- Run | Jun Mat Min Exi Min Machines Disabled . | . . . . . Max in Single Turn . | . . . . . Machines Repaired . | . . . . . Machines Sabotaged . | . . . . . Overloaded Fab Kills . | . . . . . Hacking | -11 -10 -10 -10 -9 --------- Run | Jun Mat Min Exi Min Machines Accessed 4 | . 3 . 1 . Terminals 3 | . 3 . . . Fabricators . | . . . . . Repair Stations . | . . . . . Recycling Units . | . . . . . Scanalyzers . | . . . . . Garrison Access . | . . . . . Total Hacks 17 | . 8 . 9 . Successful 13 | . 4 . 9 . Failed 4 | . 4 . . . Catastrophic 1 | . 1 . . . Database Lockouts . | . . . . . Manual 8 | . 8 . . . Terminals 8 | . 8 . . . Fabricators . | . . . . . Repair Stations . | . . . . . Recycling Units . | . . . . . Scanalyzers . | . . . . . Garrison Access . | . . . . . Terminal Hacks 10 | . 1 . 9 . Record 9 | . . . 9 . Branch Access Points 1 | . 1 . . . Fabricator Hacks . | . . . . . Repair Station Hacks . | . . . . . Recycling Unit Hacks . | . . . . . Scanalyzer . | . . . . . Garrison Access Hacks . | . . . . . Unauthorized Hacks 3 | . 3 . . . Terminals 3 | . 3 . . . Botnet 3 | . 3 . . . Fabricators . | . . . . . Repair Stations . | . . . . . Recycling Units . | . . . . . Scanalyzers . | . . . . . Garrison Access . | . . . . . Data Cores Recovered . | . . . . . Used . | . . . . . Hacking Detections 3 | . 3 . . . Full Trace Events . | . . . . . Feedback Events . | . . . . . Feedback Blocked . | . . . . . Robot Schematics Acquired . | . . . . . Robots Built . | . . . . . Authchips . | . . . . . Time . | . . . . . Total Robot Build Rating . | . . . . . Part Schematics Acquired . | . . . . . Parts Built . | . . . . . Authchips . | . . . . . Time . | . . . . . Total Part Build Rating . | . . . . . Parts Repaired . | . . . . . Time . | . . . . . Parts Recycled . | . . . . . Recycled Matter . | . . . . . Retrieved Matter . | . . . . . Retrieved Components . | . . . . . Parts Scanalyzed . | . . . . . Part Schematics Acquired . | . . . . . Parts Damaged . | . . . . . Bothacking | -11 -10 -10 -10 -9 ------------ Run | Jun Mat Min Exi Min Used RIF Installer . | . . . . . Robots Hacked . | . . . . . Non-combat . | . . . . . Combat . | . . . . . Robot Hacks Applied . | . . . . . Relay Couplers Released . | . . . . . Fabnet Peak Effective % . | . . . . . Robots Rewired . | . . . . . Allies Hacked . | . . . . . Hacks Repelled . | . . . . . Allies | -11 -10 -10 -10 -9 -------- Run | Jun Mat Min Exi Min Total Allies . | . . . . . Largest Group . | . . . . . Highest-Rated Group . | . . . . . Highest-Rated Ally . | . . . . . Total Orders . | . . . . . Ally Attacks . | . . . . . Total Damage . | . . . . . Kills . | . . . . . Allies Corrupted . | . . . . . Allies Melted . | . . . . . Intel | -11 -10 -10 -10 -9 ------- Run | Jun Mat Min Exi Min Robot Analysis Total . | . . . . . Derelict Logs Recovered 1 | . . . . 1 Drone Launches . | . . . . . Drone Recoveries . | . . . . . Exploration | -11 -10 -10 -10 -9 ------------- Run | Jun Mat Min Exi Min Turns Passed 1465 | 96 755 169 183 262 Spaces Moved 817 | 66 351 106 153 141 Core 5 | 4 1 . . . Treads . | . . . . . Legs 812 | 62 350 106 153 141 Wheels . | . . . . . Hover . | . . . . . Flight . | . . . . . Fastest Speed 50 | 50 120 120 120 120 Average Speed 141 | 115 158 125 120 144 Slowest Speed 200 | 120 200 190 120 190 Overloaded Moves . | . . . . . Propulsion Burnouts . | . . . . . Robots Hopped . | . . . . . Cave-ins Triggered . | . . . . . Exploration Rate (%) 37 | 6 66 25 55 37 Regions Visited 4 Branch Regions 3 Pre-discovered Areas . | . . . . . Known Exits Taken 1 | . 1 . . . Unknown Exits Taken 3 | 1 . 1 1 . Scrap Searched 2 | . . 1 . 1 Spaces Dug . | . . . . . Terrain Destroyed 37 | . . . . 37 Melee . | . . . . . Projectile . | . . . . . AOE 37 | . . . . 37 Terrain Rammed . | . . . . . Walls Destroyed . | . . . . . Machines Disabled . | . . . . . Actions | -11 -10 -10 -10 -9 --------- Run | Jun Mat Min Exi Min Total 993 | 78 455 131 152 177 Wait 50 | 2 29 11 . 8 Move 813 | 65 350 105 152 141 Hop . | . . . . . Pick Up 8 | 2 5 1 . . Fast Attach 14 | 6 6 2 . . Attach 9 | . 1 1 . 7 Detach 1 | . . 1 . . Swap 16 | 1 11 2 . 2 Drop 13 | . 6 3 . 4 Fire 69 | 2 47 5 . 15 Melee . | . . . . . Ram . | . . . . . Kick . | . . . . . Crush . | . . . . . Escape Stasis . | . . . . . Rewire . | . . . . . Trap . | . . . . . Miscellaneous . | . . . . . Route ------- -11/Junkyard -10/Materials (discovered 2 exits: [*Mat] / *Min) -10/Mines -10/Exiles -9/Mines (discovered 1 exit: [*Mat]) History --------- Turn | Location | Event 10 | -11/Junkyard | Discovered new exit (range 15) 97 | -11/Junkyard | Entered Materials 314 | -10/Materials | Build established: Mutant 383 | -10/Materials | Core integrity fell below 50% 613 | -10/Materials | Identified exit to Mines 614 | -10/Materials | Build established: Scavenger-Mutant 734 | -10/Materials | Discovered new exit (range 16) 852 | -10/Materials | Entered Mines 902 | -10/Mines | Received a Rocket Launcher from a helpful Derelict 913 | -10/Mines | Assembled infested the area 951 | -10/Mines | Met 8R-AWN 1016 | -10/Mines | Discovered new exit (range 5) 1021 | -10/Mines | Entered Exiles 1054 | -10/Exiles | Welcomed by 8R-AWN 1071 | -10/Exiles | Met EX-HEX 1108 | -10/Exiles | Met EX-BIN 1147 | -10/Exiles | Met EX-DEC 1156 | -10/Exiles | Build established: Mutant 1188 | -10/Exiles | Discovered new exit (range 15) 1204 | -10/Exiles | Entered Mines 1221 | -9/Mines | Learned 2 Materials zone layouts 1251 | -9/Mines | Discovered new exit (range 15) 1311 | -9/Mines | Core integrity fell below 20% 1351 | -9/Mines | Lost 4 parts (1p1n2w) 1356 | -9/Mines | Destroyed 9 combat bots 1466 | -9/Mines | Destroyed by S-10 Pest with Light Assault Rifle Last Messages --------------- 01418_ U-05 Engineer lays Concrete. 01420_ K-01 Serf collects debris. 01421_ U-05 Engineer lays Concrete. 01425_ K-01 Serf collects debris. 01425_ U-05 Engineer lays Concrete. 01429_ K-01 Serf collects debris. 01429_ U-05 Engineer lays Concrete. 01433_ K-01 Serf collects debris. 01434_ U-05 Engineer lays Concrete. 01445_ U-05 Engineer builds a Wall. 01447_ K-01 Serf collects debris. 01451_ Lgt. Nuclear Core destroyed. 01457_ S-10 Pest destroyed. 01458_ Imp. Heat Sink destroyed. 01459_ K-01 Serf collects debris. 01460_ S-10 Pest destroyed. 01461_ Acquired 10 matter. 01461_ K-01 Serf collects debris. 01463_ S-10 Pest destroyed. 01463_ K-01 Serf collects debris. Map ----- +----------------------------------------------------+ | ??????????????????? #####??????????????????????? | | ??????????????????? #??????????????????????? | | ??????????????????? ???????????????????????? | | ??????????????????? ???????????????????????? | | ??????????????????? ????????????????????????? | | ??????????????????# ????????????????????????? | | ??????????????????# ?????????????????????????? | | ?????????????????## #?????????????????????????? | | ????????????????## #?????????????????????????? | | ??????????????### #????????????????????????"" | | ?????????###### #????????????????????????"" | | ?????????? #???? #????????????????"" | | ?????????????# ## #???????????????? | | ??????????????# #???????????????????? | | ??????????????##### ### #????????????????????# | | ??????????????????# ##??? #????????????????????# | | ??????????###??#### ##??? ?????????????????????# | | ?????????## #?# # #??? ###?????????????????## | | ????????## ?# ##% #??? ##????????????????# | | ????##### #### #??? #???????????????## | | ???## ## ###? #???????????##### | | ???# [ # ## #??????????## | | ??# = r ## #??????????????# | | ?? ! #???????? ##???# | | ?? =] =k### #???# ## | | ????# = ###k@%*= #???## ### | | ????# # % ###s##[## #????# #?# | | ???????### ##?#=## ##??? ##????# ### | | ????????## ##?## ##???????????# ## | | ?????????# #??# ####????????# ## | | ????????# # #??# ##???????## ### | | ????????# # #??## ##???????# #?# | | ????????### ##???#### ##??????# #?# | | ??????????## #???????## ###????# ### | | ??????????#### ##????##### ##???# | | ?????????????### #?????# #???# #### | | ???????????????# #?????# ##### #??? | | ???????????????# #?##### ## #??? | | ???????????????# #?# ### < #??? | | ???????????????# #?# #####?## ##########??? | | ??????????????? ??????????#### ##???????????? | | ??????????????? ?????????????## #????????????? | | ??????????????? #??????????????## #????????????? | | ??????????????? ????????????????# #????????????? | | ??????????????? ???????????????? #????????????? | | ??????????????? ??????????????? ## #????????????? | | ??????????????? ??????????????? ?# #????????????? | | ??????????????? ??????????????#??? #????????????? | | ??????????????? ?????????????????? #????????????? | | ??????????????? ?????????????????? #????????????? | +----------------------------------------------------+ Best States ------------- Heat Dissipation 39 Energy Generation 14 Energy Capacity 250 Matter Stores 300 Matter Capacity 300 Sight Range 16 Terrain Scan Density 10 ECM Strength 1 Evasion (%) 55 Item Schematics ----------------- None Robot Schematics ------------------ None Fabricated ------------ Nothing Alien Tech Used ----------------- None Achievements -------------- None Challenges ------------ None Game ------ Seed PointWaveDriver Manual? 0 Play Time 00:13:03 Cumulative 18.4 hours Start 2023.03.21 @ 13:50:33 End 2023.03.21 @ 14:01:36 Sessions 1 Manual Loads 0 Difficulty Rogue Special Mode None Game No. 33 Rogue 17 Adventurer 16 Explorer 0 Win Type - Total 0 Types 0/0/0/0/0/0/0/0/0 Lore% 17 Gallery% 29 Achievement% 31 Wizard Run 0 Options --------- ASCII 0 Keyboard 0 Movement Mouse Keybinds 0 Fullscreen 1 Font 20/SmallcapsGlow Map View 66x50 Tactical HUD 1 Map Filters NONE Filters NONE Steam X RUN: c6430704-3e78-458f-8e0e-a2899ed695e6